bitfinex-derivatives/quotes_SOLF0:USTF0_20250530
["timestamp","ask_amount","ask_price","bid_price","bid_amount"]
[1748617059888,6.1978,161.31,161.25,10.72623141]
[1748617060102,2.0153,161.32,161.21,35.0827]
[1748617060284,6.1997,161.26,161.21,35.0827]
[1748617060685,0.04239633,161.25,161.22,0.04637018]
[1748617061292,0.04239633,161.25,161.23,6.2005]
[1748617061992,0.04239633,161.25,161.22,6.24717018]
[1748617062594,0.04239633,161.25,161.23,6.2006]
[1748617062789,0.04239633,161.25,161.22,0.04637018]
[1748617062995,0.04239633,161.25,161.24,6.2002]
[1748617064497,6.1984,161.29,161.26,6.1993]
[1748617065295,6.23876542,161.29,161.26,6.24327543]
[1748617065697,0.04036542,161.29,161.27,6.1989]
[1748617066001,0.04036542,161.29,161.26,0.04397543]
[1748617067601,0.04036542,161.29,161.27,6.1991]
[1748617067900,0.04036542,161.29,161.27,10.72623141]
[1748617068097,0.04036542,161.29,161.28,6.1987]
[1748617072600,0.04036542,161.29,161.27,6.1989]
[1748617072994,0.04036542,161.29,161.26,0.04397543]
[1748617074705,0.04036542,161.29,161.27,6.1991]
[1748617074910,0.04036542,161.29,161.26,0.04397543]
[1748617075105,0.04036542,161.29,161.26,6.24327543]
[1748617075306,0.04036542,161.29,161.26,0.04397543]
[1748617075605,0.04036542,161.29,161.27,6.1987]
[1748617076099,0.04036542,161.29,161.26,0.04397543]
[1748617076100,0.04036542,161.29,161.28,6.1987]
[1748617080202,0.04036542,161.29,161.26,0.04397543]
[1748617080909,0.04036542,161.29,161.26,6.24337543]
[1748617081609,0.04036542,161.29,161.27,6.1991]
[1748617082810,0.04036542,161.29,161.26,0.04397543]
[1748617083698,0.04036542,161.29,161.28,6.1987]
[1748617084304,0.04036542,161.29,161.27,6.1989]
[1748617085207,0.04036542,161.29,161.28,6.1987]
[1748617088313,37.0109,161.36,161.32,6.1971]
[1748617088814,6.1963,161.35,161.32,6.1971]
[1748617089012,37.0109,161.36,161.28,10.72623141]
[1748617089013,32.88,161.36,161.34,6.1963]
[1748617089213,39.076,161.36,161.28,10.72623141]
[1748617089414,0.04528012,161.34,161.32,6.1969]
[1748617090022,0.04528012,161.34,161.3,0.04641967]
[1748617090819,6.1969,161.33,161.3,0.04641967]
[1748617091023,0.04528012,161.34,161.3,0.04641967]
[1748617091425,6.1974,161.32,161.3,0.04641967]
[1748617092228,6.1976,161.31,161.3,0.04641967]
[1748617092422,2.0251,161.31,161.25,6.1997]
[1748617092817,6.1986,161.29,161.25,6.1997]
[1748617093021,6.1986,161.29,161.26,6.1995]
[1748617093429,0.04688955,161.29,161.27,6.1991]
[1748617093729,0.04688955,161.29,161.26,0.0408947]
[1748617094226,0.04688955,161.29,161.27,6.1991]
[1748617094926,0.04688955,161.29,161.28,6.1988]
[1748617096221,0.04688955,161.29,161.27,6.199]
[1748617097730,0.04688955,161.29,161.28,6.1988]
[1748617098439,0.04688955,161.29,161.27,6.199]
[1748617098826,0.04688955,161.29,161.26,6.2400947]
[1748617099029,6.24538955,161.29,161.26,0.0408947]
[1748617099232,0.04688955,161.29,161.26,0.0408947]
[1748617099929,6.1991,161.28,161.26,0.0408947]
[1748617102736,6.1991,161.27,161.26,0.0408947]
[1748617103334,6.2003,161.24,161.17,43.60623141]
[1748617103634,6.2003,161.24,161.17,32.88]
[1748617103829,6.2,161.25,161.21,6.2012]
[1748617104432,6.24156994,161.25,161.21,6.2461824]
[1748617104635,6.24156994,161.25,161.22,6.201]
[1748617105226,6.24156994,161.25,161.21,6.2462824]
[1748617105625,0.04156994,161.25,161.21,0.0449824]
[1748617106136,6.24156994,161.25,161.21,0.0449824]
[1748617106433,0.04156994,161.25,161.21,0.0449824]
[1748617107329,6.24176994,161.25,161.22,6.201]
[1748617107735,6.2005,161.24,161.21,6.2462824]
[1748617107932,0.04156994,161.25,161.21,0.0449824]
[1748617108339,6.24166994,161.25,161.22,6.2009]
[1748617109642,0.04156994,161.25,161.21,0.0449824]
[1748617110138,0.04156994,161.25,161.22,6.2008]
[1748617110933,0.04156994,161.25,161.21,6.2462824]
[1748617110934,6.24156994,161.25,161.21,6.2462824]
[1748617111436,6.2003,161.24,161.21,6.2462824]
[1748617111636,0.04156994,161.25,161.21,0.0449824]
[1748617112137,6.2004,161.24,161.21,0.0449824]
[1748617112742,6.2004,161.24,161.21,6.2463824]
[1748617113540,6.2004,161.24,161.21,0.0449824]
[1748617113938,6.24166994,161.25,161.21,6.2463824]
[1748617114242,0.04156994,161.25,161.21,0.0449824]
[1748617115032,6.2006,161.24,161.21,0.0449824]
[1748617117339,6.2006,161.24,161.21,6.2463824]
[1748617118037,6.2006,161.24,161.21,0.0449824]
[1748617118634,6.2006,161.24,161.21,6.2463824]
[1748617118833,6.2006,161.24,161.21,0.0449824]
[1748617119745,0.04156994,161.25,161.21,0.0449824]
[1748617120247,6.2004,161.24,161.21,6.2461824]
[1748617120736,0.04156994,161.25,161.21,0.0449824]
[1748617121240,6.201,161.23,161.21,0.0449824]
[1748617121542,0.04156994,161.25,161.21,0.0449824]
[1748617121944,6.2005,161.24,161.21,6.2463824]
[1748617122545,6.2007,161.23,161.21,0.0449824]
[1748617122742,0.04156994,161.25,161.21,0.0449824]
[1748617122945,6.2005,161.24,161.21,6.2463824]
[1748617124748,6.2007,161.23,161.21,0.0449824]
[1748617125045,0.04156994,161.25,161.21,0.0449824]
[1748617125245,6.2011,161.22,161.21,0.0449824]
[1748617128551,6.2008,161.23,161.21,0.0449824]
[1748617128954,6.201,161.22,161.21,0.0449824]
[1748617129854,6.2008,161.23,161.21,0.0449824]
[1748617131053,6.201,161.22,161.21,0.0449824]
[1748617131254,0.04156994,161.25,161.21,0.0449824]
[1748617131651,6.201,161.23,161.21,0.0449824]
[1748617132743,6.201,161.22,161.21,0.0449824]
[1748617132948,0.04156994,161.25,161.21,0.0449824]
[1748617133149,6.201,161.23,161.21,0.0449824]
[1748617133745,6.201,161.22,161.21,0.0449824]
[1748617141653,32.84,161.23,161.14,32.84]
[1748617141861,2.154,161.22,161.14,32.84]
[1748617142259,6.2028,161.18,161.14,32.84]
[1748617142455,6.2028,161.18,161.14,39.0438]
[1748617142655,6.24709102,161.18,161.14,39.09085937]
[1748617143353,0.04429102,161.18,161.14,0.04705937]
[1748617144151,0.04429102,161.18,161.08,32.84]
[1748617144461,43.56623141,161.19,161.05,43.52623141]
[1748617144657,43.56623141,161.19,161.09,6.2059]
[1748617144858,43.56623141,161.19,161.05,43.52623141]
[1748617145263,6.2047,161.13,161.1,0.04737399]
[1748617146468,0.04019881,161.14,161.1,0.04737399]
[1748617146661,0.04019881,161.14,161.11,10.72623141]
[1748617146856,0.04019881,161.14,161.13,6.2045]
[1748617147062,570.6668,161.21,161.11,12.69513141]
[1748617147254,570.6668,161.21,161.11,1.9689]
[1748617147255,568.54,161.21,161.11,1.9689]
[1748617147461,6.2022,161.19,161.16,6.2031]
[1748617148261,6.24449856,161.19,161.16,6.24889001]
[1748617148458,0.04229856,161.19,161.16,6.24889001]
[1748617149170,0.04229856,161.19,161.16,0.04579001]
[1748617149556,6.2029,161.17,161.16,0.04579001]
[1748617154177,6.2027,161.18,161.16,0.04579001]
[1748617155283,6.2029,161.17,161.16,0.04579001]
[1748617159081,0.04229856,161.19,161.16,0.04579001]
[1748617162582,0.04229856,161.19,161.1,32.8]
[1748617163375,0.04229856,161.19,161.13,0.04660178]
[1748617166277,0.04229856,161.19,161.14,32.8]
[1748617166478,32.8,161.25,161.16,10.72623141]
[1748617167584,0.04596053,161.22,161.19,0.04268931]
[1748617172680,0.04596053,161.22,161.19,10.76892072]
[1748617174288,0.04596053,161.22,161.19,0.04268931]
[1748617177088,0.04596053,161.22,161.13,10.72623141]
[1748617177893,0.04596053,161.22,161.16,0.04150637]
[1748617178883,12.76539194,161.22,161.16,0.04150637]
[1748617179892,2.0893,161.21,161.16,0.04150637]
[1748617180095,32.74,161.2,161.16,0.04150637]
[1748617183089,32.74,161.2,161.09,32.74]
[1748617184093,0.04587932,161.16,161.13,0.04613833]
[1748617185104,32.78587932,161.16,161.13,0.04613833]
[1748617186592,2.0502,161.15,161.13,0.04613833]
[1748617187095,2.0502,161.15,161.06,34.8841]
[1748617187395,2.0502,161.15,161.06,2.1441]
[1748617187895,0.04037375,161.12,161.09,0.04335132]
[1748617189100,32.80037375,161.12,161.09,0.04335132]
[1748617190696,32.80037375,161.12,161.0,32.76]
[1748617190895,32.76,161.12,161.0,32.76]
[1748617191103,32.76,161.12,161.01,6.2089]
[1748617191698,6.2074,161.06,161.01,6.2089]
[1748617191894,6.2074,161.06,161.05,0.04609276]
[1748617192399,6.2069,161.07,161.05,0.04609276]
[1748617192996,6.2072,161.06,161.05,0.04609276]
[1748617195699,6.2084,161.03,160.99,8.3124]
[1748617196102,32.76,161.08,160.98,6.2101]
[1748617196300,6.209,161.02,160.98,6.2101]
[1748617196698,6.25092338,161.02,160.98,6.2101]
[1748617196902,6.25092338,161.02,160.98,6.25014075]
[1748617197296,0.04192338,161.02,160.99,6.2098]
[1748617197502,0.04192338,161.02,160.98,0.04004075]
[1748617197706,6.2095,161.0,160.98,0.04004075]
[1748617197900,0.04192338,161.02,160.98,0.04004075]
[1748617198201,6.2099,160.99,160.98,0.04004075]
[1748617198403,32.76,161.0,160.92,2.0475]
[1748617199309,6.24960907,160.98,160.94,6.25302038]
[1748617199802,6.2113,160.96,160.94,0.04122038]
[1748617200210,0.03910907,160.98,160.94,0.04122038]
[1748617201104,6.2114,160.95,160.94,0.04122038]
[1748617201510,6.2129,160.92,160.87,8.2908]
[1748617201708,32.76,160.96,160.87,2.0766]
[1748617202003,6.2125,160.93,160.88,6.2138]
[1748617202199,6.2125,160.93,160.87,2.0766]
[1748617202402,0.04434998,160.92,160.88,0.04622569]
[1748617202598,6.25714998,160.92,160.88,6.26022569]
[1748617203010,0.04434998,160.92,160.88,0.04622569]
[1748617203205,0.04434998,160.92,160.9,6.2131]
[1748617204608,0.04434998,160.92,160.89,6.2134]
[1748617204913,0.04434998,160.92,160.88,0.04622569]
[1748617205510,0.04434998,160.92,160.89,10.72623141]
[1748617205715,0.04434998,160.92,160.89,43.44623141]
[1748617206013,2.0396,161.03,160.89,51.72563141]
[1748617206316,32.72,161.05,160.95,10.72623141]
[1748617206510,32.72,161.05,160.95,43.44623141]
[1748617206709,32.72,161.05,160.95,32.72]
[1748617207015,6.2098,161.0,160.98,0.04289217]
[1748617207312,0.04280427,161.02,160.98,0.04289217]
[1748617208109,0.04280427,161.02,160.98,6.25289217]
[1748617208611,6.25170427,161.02,160.98,6.25289217]
[1748617209517,0.04280427,161.02,160.99,6.2098]
[1748617210212,0.04280427,161.02,160.98,0.04289217]
[1748617211116,6.25170427,161.02,160.99,6.2096]
[1748617211312,0.04280427,161.02,160.98,0.04289217]
[1748617211618,0.04280427,161.02,161.01,6.2091]
[1748617212318,0.04280427,161.02,161.0,6.2092]
[1748617212708,0.04280427,161.02,160.98,10.76912358]
[1748617212906,0.04280427,161.02,161.0,6.2092]
[1748617213313,0.04280427,161.02,160.85,891.2]
[1748617213507,10.72623141,160.99,160.86,38.8638]
[1748617213710,39.1701,160.98,160.86,38.8638]
[1748617214419,0.04623151,160.94,160.9,0.04055489]
[1748617214612,0.04623151,160.94,160.9,32.76055489]
[1748617215118,37.0098,161.03,160.95,6.2112]
[1748617215413,47.73603141,161.03,160.94,32.72]
[1748617216017,0.04416107,161.0,160.97,0.04678735]
[1748617216319,6.2101,160.99,160.97,0.04678735]
[1748617216521,0.04416107,161.0,160.97,0.04678735]
[1748617217433,6.2102,160.98,160.97,0.04678735]
[1748617219619,0.04416107,161.0,160.92,32.74]
[1748617219813,54.94847473,161.03,160.85,536.2]
[1748617219814,2.0167,160.99,160.85,536.2]
[1748617220010,2.0167,160.99,160.87,32.74]
[1748617220011,32.74,160.98,160.87,32.74]
[1748617220619,0.03921576,160.94,160.91,0.04114148]
[1748617220816,0.03921576,160.94,160.86,2.1145]
[1748617221121,0.03921576,160.94,160.86,32.74]
[1748617221721,6.2135,160.9,160.86,38.9548]
[1748617221923,6.25426229,160.9,160.86,32.78322782]
[1748617222318,6.2143,160.88,160.86,0.04322782]
[1748617223725,0.04076229,160.9,160.81,32.74]
[1748617223919,32.74,160.9,160.81,32.74]
[1748617224121,6.2156,160.85,160.81,32.74]
[1748617224324,32.74,160.9,160.8,6.2169]
[1748617224524,32.74,160.9,160.8,32.74]
[1748617224838,0.04453454,160.87,160.83,0.03265963]
[1748617226119,6.215,160.86,160.83,0.03265963]
[1748617226320,0.04453454,160.87,160.83,0.03265963]
[1748617226626,6.25913454,160.87,160.84,32.74]
[1748617226829,0.04453454,160.87,160.84,32.74]
[1748617228031,0.04453454,160.87,160.83,32.77265963]
[1748617228824,6.2157,160.84,160.83,0.03265963]
[1748617229220,0.04453454,160.87,160.83,0.03265963]
[1748617229833,0.04453454,160.87,160.78,2.0969]
[1748617230335,6.216,160.83,160.79,6.2173]
[1748617230728,6.2158,160.84,160.79,6.2173]
[1748617230929,0.04072694,160.83,160.78,8.3147]
[1748617231430,0.04072694,160.83,160.78,2.0969]
[1748617231832,6.25702694,160.83,160.79,6.2176]
[1748617232438,6.2165,160.82,160.78,8.3147]
[1748617232637,0.04072694,160.83,160.78,2.0969]
[1748617233941,6.2165,160.82,160.78,8.3146]
[1748617234436,0.04072694,160.83,160.78,2.0969]
[1748617235141,0.04072694,160.83,160.8,6.2172]
[1748617235442,0.04072694,160.83,160.81,32.7]
[1748617236438,34.7066,160.92,160.81,32.7]
[1748617237137,6.2147,160.87,160.83,6.2159]
[1748617237439,0.04620841,160.87,160.83,0.04072694]
[1748617237641,6.215,160.86,160.83,0.04072694]
[1748617237840,0.04620841,160.87,160.83,0.04072694]
[1748617238137,6.26090841,160.87,160.83,6.25672694]
[1748617238341,0.04620841,160.87,160.83,6.25672694]
[1748617238645,0.04620841,160.87,160.83,0.04072694]
[1748617239640,6.2156,160.84,160.83,0.04072694]
[1748617240030,0.04620841,160.87,160.83,0.04072694]
[1748617240641,6.2149,160.86,160.83,6.25672694]
[1748617240841,0.04620841,160.87,160.83,0.04072694]
[1748617241036,0.04620841,160.87,160.83,32.74072694]
[1748617241242,6.26090841,160.87,160.84,6.2156]
[1748617241444,0.04620841,160.87,160.83,32.74072694]
[1748617241740,32.7,160.94,160.83,37.06832694]
[1748617241934,32.7,160.96,160.83,37.0276]
[1748617242340,6.2148,160.87,160.83,43.2435]
[1748617242540,6.25660906,160.87,160.83,37.07029948]
[1748617243039,0.04180906,160.87,160.84,6.2154]
[1748617243439,0.04180906,160.87,160.83,37.07029948]
[1748617244042,0.04180906,160.87,160.85,6.215]
[1748617244545,0.04180906,160.87,160.84,6.2155]
[1748617244745,0.04180906,160.87,160.83,32.74269948]
[1748617245037,0.04180906,160.87,160.85,6.2152]
[1748617245244,0.04180906,160.87,160.83,32.74269948]
[1748617245640,0.04180906,160.87,160.85,6.2152]
[1748617245836,32.7,160.95,160.83,32.74269948]
[1748617246144,32.7,160.95,160.89,6.2135]
[1748617246343,32.7,160.95,160.88,32.7]
[1748617246952,0.04314123,160.93,160.9,0.04778551]
[1748617247546,6.2129,160.91,160.9,0.04778551]
[1748617247847,0.04314123,160.93,160.9,0.04778551]
[1748617248145,6.2127,160.92,160.9,0.04778551]
[1748617248645,6.25544123,160.93,160.9,6.26088551]
[1748617248949,0.04314123,160.93,160.9,6.26088551]
[1748617249346,0.04314123,160.93,160.9,0.04778551]
[1748617249849,6.2128,160.92,160.9,0.04778551]
[1748617250350,6.2129,160.91,160.9,0.04778551]
[1748617250550,0.04314123,160.93,160.9,0.04778551]
[1748617251050,0.04314123,160.93,160.9,6.26098551]
[1748617251547,6.25534123,160.93,160.9,6.26098551]
[1748617251848,6.25534123,160.93,160.9,0.04778551]
[1748617252644,0.04314123,160.93,160.9,0.04778551]
[1748617253249,6.25554123,160.93,160.9,0.04778551]
[1748617253551,0.04314123,160.93,160.9,0.04778551]
[1748617253752,0.04314123,160.93,160.92,6.2125]
[1748617254150,0.04314123,160.93,160.9,0.04778551]
[1748617254349,0.04314123,160.93,160.91,6.2128]
[1748617254548,0.04314123,160.93,160.9,0.04778551]
[1748617255049,6.2129,160.91,160.9,0.04778551]
[1748617257247,0.04314123,160.93,160.9,0.04778551]
[1748617258251,0.04314123,160.93,160.91,32.7]
[1748617259053,0.04314123,160.93,160.91,38.9128]
[1748617259054,6.25534123,160.93,160.91,38.9128]
[1748617259649,6.25534123,160.93,160.91,32.7]
[1748617259851,6.2125,160.92,160.91,32.7]
[1748617260051,0.04314123,160.93,160.91,32.7]
[1748617260553,32.7,161.01,160.91,32.7]
[1748617260854,6.1957,161.02,160.94,6.2115]
[1748617260855,6.2108,160.97,160.94,6.2115]
[1748617261551,6.2108,160.97,160.94,0.03924404]
[1748617261552,0.04107659,160.97,160.94,0.03924404]
[1748617261857,0.04107659,160.97,160.95,32.68]
[1748617263157,0.04107659,160.97,160.95,38.891]
[1748617263555,0.04107659,160.97,160.95,32.68]
[1748617263754,0.04107659,160.97,160.94,0.03924404]
[1748617264854,6.2114,160.95,160.94,0.03924404]
[1748617269663,0.04107659,160.97,160.94,0.03924404]
[1748617269867,0.04107659,160.97,160.96,6.211]
[1748617270063,0.04107659,160.97,160.96,32.64]
[1748617271268,0.04107659,160.97,160.96,38.851]
[1748617272261,6.209,161.02,160.96,32.64]
[1748617272463,32.64,161.05,160.96,32.64]
[1748617272774,6.2093,161.01,160.97,6.2104]
[1748617273261,0.04190851,161.01,160.97,0.04693798]
[1748617273462,6.2102,160.98,160.97,0.04693798]
[1748617273769,0.04190851,161.01,160.97,0.04693798]
[1748617274069,32.64,161.18,161.0,17.93867473]
[1748617274257,1.9961,161.15,161.04,17.93867473]
[1748617274462,6.2051,161.12,161.05,32.64]
[1748617274661,1.9961,161.15,161.06,122.82]
[1748617275167,0.04071309,161.12,161.09,0.04099603]
[1748617275358,0.04071309,161.12,161.09,32.68099603]
[1748617275565,6.24581309,161.12,161.09,32.68099603]
[1748617275761,6.24581309,161.12,161.09,38.88699603]
[1748617275964,0.04071309,161.12,161.09,38.88699603]
[1748617276365,0.04071309,161.12,161.09,32.68099603]
[1748617276970,0.04071309,161.12,161.11,6.2052]
[1748617277174,1.9961,161.19,161.09,32.68099603]
[1748617277470,1.9961,161.19,161.1,4.2129]
[1748617277971,1.9961,161.19,161.12,6.2044]
[1748617278174,0.04257494,161.17,161.14,0.04627571]
[1748617278467,6.2037,161.15,161.14,0.04627571]
[1748617283972,6.2034,161.16,161.14,0.04627571]
[1748617284373,0.04257494,161.17,161.14,0.04627571]
[1748617284573,6.2037,161.15,161.14,0.04627571]
[1748617285469,6.2037,161.15,160.82,55.9455]
[1748617285773,32.6,161.16,161.03,17.93867473]
[1748617285973,4.0842,161.14,161.03,24.14667473]
[1748617286177,6.2068,161.07,161.03,24.14667473]
[1748617286467,36.6842,161.14,161.06,6.2071]
[1748617286669,4.0842,161.14,161.06,32.6]
[1748617286875,0.04519484,161.12,161.08,0.04196663]
[1748617288072,6.2053,161.11,161.08,0.04196663]
[1748617288372,0.04519484,161.12,161.08,0.04196663]
[1748617289374,6.206,161.09,161.08,0.04196663]
[1748617290878,6.2053,161.11,161.08,0.04196663]
[1748617291071,0.04519484,161.12,161.08,0.04196663]
[1748617291274,6.2057,161.1,161.08,0.04196663]
[1748617292281,0.04519484,161.12,161.08,0.04196663]
[1748617292967,0.04519484,161.12,161.08,6.24796663]
[1748617293879,0.04519484,161.12,161.09,6.206]
[1748617294278,0.04519484,161.12,161.08,0.04196663]
[1748617294884,6.25019484,161.12,161.08,6.24806663]
[1748617295084,0.04519484,161.12,161.08,0.04196663]
[1748617295781,6.2055,161.11,161.08,0.04196663]
[1748617296381,0.04519484,161.12,161.08,0.04196663]
[1748617297485,0.04519484,161.12,161.09,6.2059]
[1748617297785,0.04519484,161.12,161.08,0.04196663]
[1748617297980,2.0882,161.16,161.09,17.93867473]
[1748617298182,32.58,161.19,161.1,32.58]
[1748617298778,2.0496,161.2,161.1,32.58]
[1748617298985,0.04703431,161.17,161.13,0.04446522]
[1748617299185,0.04703431,161.17,161.14,38.7838]
[1748617300288,0.04703431,161.17,161.14,32.58]
[1748617300289,6.25003431,161.17,161.14,32.58]
[1748617300484,0.04703431,161.17,161.14,32.58]
[1748617301284,6.25013431,161.17,161.14,32.58]
[1748617302198,6.2034,161.16,161.14,32.58]
[1748617302888,0.04703431,161.17,161.13,0.04446522]
[1748617303285,6.2041,161.14,161.13,0.04446522]
[1748617306992,38.76,161.14,161.02,250.41118124]
[1748617307194,32.56,161.14,161.02,250.41118124]
[1748617307393,32.56,161.14,161.02,217.85118124]
[1748617308197,0.03999363,161.1,161.06,0.0416105]
[1748617308494,32.56,161.09,161.06,0.0416105]
[1748617309095,6.2068,161.07,161.06,0.0416105]
[1748617310189,6.2065,161.08,161.06,0.0416105]
[1748617310387,0.03999363,161.1,161.06,0.0416105]
[1748617310901,6.2068,161.07,161.06,0.0416105]
[1748617311490,6.2065,161.08,161.06,0.0416105]
[1748617311995,6.2068,161.07,161.06,0.0416105]
[1748617312494,0.03999363,161.1,161.06,0.0416105]
[1748617312698,6.2061,161.09,161.06,0.0416105]
[1748617313291,6.2064,161.08,161.06,0.0416105]
[1748617313699,0.03999363,161.1,161.06,0.0416105]
[1748617315799,0.03999363,161.1,161.08,6.2061]
[1748617316106,6.24559363,161.1,161.08,6.2061]
[1748617316404,0.03999363,161.1,161.06,0.0416105]
[1748617317302,6.2063,161.09,161.06,0.0416105]
[1748617317697,6.2063,161.09,161.06,6.2486105]
[1748617318103,0.03999363,161.1,161.06,0.0416105]
[1748617319704,6.2062,161.09,161.06,6.2487105]
[1748617319896,0.03999363,161.1,161.06,0.0416105]
[1748617320996,0.03999363,161.1,161.06,17.98028523]
[1748617321304,2.0671,161.14,161.06,17.98028523]
[1748617321902,32.58,161.18,161.06,17.98028523]
[1748617322203,6.2043,161.14,161.11,6.2049]
[1748617322403,0.04556544,161.14,161.11,0.03956864]
[1748617322602,6.2048,161.13,161.11,0.03956864]
[1748617322802,0.04556544,161.14,161.11,0.03956864]
[1748617324008,0.04556544,161.14,161.06,38.7868]
[1748617324308,32.62556544,161.14,161.06,38.7868]
[1748617324808,32.62556544,161.14,161.06,32.58]
[1748617325109,6.206,161.09,161.08,0.04550748]
[1748617325305,0.04193738,161.1,161.08,0.04550748]
[1748617325708,6.24773738,161.1,161.08,0.04550748]
[1748617326101,6.206,161.09,161.08,0.04550748]
[1748617326402,0.04193738,161.1,161.08,0.04550748]
[1748617326598,6.24773738,161.1,161.08,0.04550748]
[1748617327002,0.04193738,161.1,161.08,6.25180748]
[1748617327203,6.2038,161.15,161.08,0.04550748]
[1748617327400,36.7149,161.17,161.08,0.04550748]
[1748617327804,6.204,161.15,161.08,0.04550748]
[1748617328209,0.04571324,161.13,161.08,2.11430748]
[1748617328806,0.04571324,161.13,161.12,6.2048]
[1748617329005,2.177,161.19,161.1,50.47867473]
[1748617329509,6.2034,161.16,161.13,6.2041]
[1748617329707,2.177,161.19,161.13,6.2041]
[1748617329908,2.177,161.19,161.1,50.47867473]
[1748617330109,0.04268161,161.16,161.13,0.04512127]
[1748617330607,6.2044,161.14,161.13,0.04512127]
[1748617337517,32.58268161,161.16,161.07,32.54]
[1748617337717,32.54,161.16,161.07,32.54]
[1748617337913,34.717,161.19,161.1,10.73979929]
[1748617338216,34.717,161.19,161.11,32.54]
[1748617338417,0.04417434,161.17,161.13,6.25062761]
[1748617338612,6.2037,161.15,161.13,6.25062761]
[1748617338817,6.2037,161.15,161.13,0.04642761]
[1748617339614,6.2041,161.14,161.13,0.04642761]
[1748617343817,6.2041,161.14,161.13,2.761e-05]
[1748617345525,12.4041,161.14,161.13,2.761e-05]
[1748617346223,6.2041,161.14,161.13,2.761e-05]
[1748617347417,6.2038,161.15,161.13,2.761e-05]
[1748617347626,0.04417434,161.17,161.13,2.761e-05]
[1748617347924,0.04417434,161.17,161.13,10.7398269]
[1748617348120,0.04417434,161.17,161.15,6.2036]
[1748617348726,2.1272,161.23,161.17,6.2025]
[1748617349230,6.202,161.2,161.17,6.2029]
[1748617349720,0.04747882,161.2,161.17,0.04404633]
[1748617350328,0.04747882,161.2,161.18,6.2023]
[1748617351421,0.04747882,161.2,161.17,6.24674633]
[1748617352327,6.24927882,161.2,161.17,6.24674633]
[1748617352819,0.04747882,161.2,161.17,0.04404633]
[1748617354525,0.04747882,161.2,161.19,6.2021]
[1748617356123,6.2007,161.23,161.2,6.2014]
[1748617356319,1.9704,161.26,161.2,6.2014]
[1748617356527,34.5566,161.27,161.19,32.52]
[1748617356727,34.5566,161.27,161.21,6.2011]
[1748617356925,6.2004,161.24,161.21,6.2011]
[1748617357225,0.04057295,161.24,161.21,6.24084073]
[1748617357625,6.24117295,161.24,161.21,6.24084073]
[1748617357825,0.04057295,161.24,161.21,6.24084073]
[1748617358027,0.04057295,161.24,161.21,0.03954073]
[1748617358621,34.5132,161.3,161.22,17.88457174]
[1748617358826,34.5132,161.3,161.23,32.48]
[1748617359225,6.1989,161.28,161.25,6.1996]
[1748617359529,2.0332,161.3,161.23,32.48]
[1748617359728,0.04455123,161.27,161.25,6.1998]
[1748617360127,0.04455123,161.27,161.24,0.04698899]
[1748617360327,6.24365123,161.27,161.24,6.24698899]
[1748617360630,0.04455123,161.27,161.24,0.04698899]
[1748617360824,0.04455123,161.27,161.25,6.1997]
[1748617361026,0.04455123,161.27,161.24,0.04698899]
[1748617361220,32.52455123,161.27,161.16,32.48]
[1748617361426,32.48,161.27,161.16,32.48]
[1748617361924,6.2023,161.19,161.16,32.48]
[1748617362429,6.2025,161.18,161.16,32.52206679]
[1748617362621,0.0413059,161.19,161.16,32.52206679]
[1748617362823,0.0413059,161.19,161.16,0.04206679]
[1748617363024,32.5213059,161.19,161.09,32.48]
[1748617363224,32.48,161.19,161.09,32.48]
[1748617364126,0.04584409,161.16,161.12,0.04652836]
[1748617364325,6.2046,161.13,161.12,0.04652836]
[1748617364530,32.48,161.15,161.06,32.48]
[1748617364728,2.0814,161.14,161.06,32.48]
[1748617365431,6.2055,161.11,161.08,0.04140946]
[1748617366027,6.2056,161.1,161.08,0.04140946]
[1748617366427,0.04518269,161.12,161.08,0.04140946]
[1748617367833,6.2055,161.11,161.08,0.04140946]
[1748617370530,0.04518269,161.12,161.08,0.04140946]
[1748617371436,32.5,161.11,161.08,0.04140946]
[1748617371632,32.5,161.11,160.99,4.0425]
[1748617371633,1.967,161.1,160.99,4.0425]
[1748617371930,1.967,161.1,160.98,32.5]
[1748617372528,1.967,161.1,160.96,535.94]
[1748617372737,0.04162836,161.05,161.01,0.04066429]
[1748617372930,32.5,161.04,161.01,0.04066429]